Cogmind - Beta 13 @@@ ROGUE MODE // 2024.04.30 @ 00:22:46 Player: Some Pennies Result: Destroyed by B6-6S8(R) with Subdweller Laser Performance ------------- Evolutions (0) 0 Regions Visited (2) 400 Robots Destroyed (32) 160 Value Destroyed (616) 616 Prototype IDs (4) 80 Alien Tech Used (0) 0 Bonus (0) 0 TOTAL SCORE: 1256 Bonus ------- None Cogmind --------- Core Integrity 0/250 Matter 233/300 Energy 135/250 System Corruption 0% Temperature Cool (6) Movement Treading (240) Ox1 Location -10/Subcaves Parts ------- > --- POWER (1) -------- Ion Engine > --- PROPULSION (2) --- Light Treads Light Treads > --- UTILITY (2) ------ Heat Sink High-capacity Storage Unit > --- WEAPON (2) ------- Beam Cannon Light Assault Rifle > --- INVENTORY (20) --- High-capacity Matter Pod (200) Structural Scanner Sensor Array Improved Terrain Scanner Improved Terrain Scanner Seismic Detector Transport Network Coupler Cobbler Unit Light Assault Rifle Grenade Launcher Grenade Launcher Grenade Launcher Grenade Launcher Mining Laser Hammer Peak State ------------ > --- POWER ------------ Ion Engine > --- PROPULSION ------- Light Treads Light Treads > --- UTILITY ---------- High-capacity Storage Unit Improved Terrain Scanner > --- WEAPON ----------- Light Assault Rifle Light Assault Rifle > --- INVENTORY -------- Ion Engine Light Ion Engine Light Nuclear Core Light Treads Light Treads Light Treads Heat Sink High-capacity Matter Pod Sensor Array Improved Terrain Scanner Seismic Detector Transport Network Coupler Medium Laser Light Cannon Light Cannon Grenade Launcher Mining Laser Welding Torch [Rating: 11] Favorites ----------- Power Ion Engine Engine Ion Engine Propulsion Light Treads Treads Light Treads Utility High-capacity Storage Unit Device Improved Terrain Scanner Storage High-capacity Storage Unit Weapon Light Assault Rifle Energy Gun Medium Laser Energy Cannon Beam Cannon Ballistic Gun Light Assault Rifle Ballistic Cannon Light Cannon Launcher Grenade Launcher Special Weapon Mining Laser Build | -11 -10 -10 ------- Run | Yrd Mat Sub Slots Evolved . | . . . Power . | . . . Propulsion . | . . . Utility . | . . . Weapon . | . . . Parts Attached 34 | 10 12 12 Power 4 | 1 1 2 Engine 4 | 1 1 2 Core . | . . . Reactor . | . . . Propulsion 5 | 2 1 2 Treads 5 | 2 1 2 Leg . | . . . Wheel . | . . . Hover . | . . . Flight . | . . . Utility 8 | 3 5 . Device 5 | 2 3 . Storage 3 | 1 2 . Processor . | . . . Hackware . | . . . Protection . | . . . Artifact . | . . . Weapon 17 | 4 5 8 Energy Gun 2 | 2 . . Energy Cannon 2 | . 1 1 Ballistic Gun 5 | 2 2 1 Ballistic Cannon 5 | . 1 4 Launcher 1 | . 1 . Special Weapon 2 | . . 2 Impact Weapon . | . . . Slashing Weapon . | . . . Piercing Weapon . | . . . Special Melee Weapon . | . . . Unidentified Prototypes . | . . . Parts Lost 8 | . 2 6 Power 2 | . . 2 Propulsion 2 | . . 2 Utility . | . . . Weapon 4 | . 2 2 Highest Loss Streak 4 | . 1 4 To Critical Strikes . | . . . Average Slot Usage (%) 99 | . 99 99 Engine 13 | . 14 13 Treads 27 | . 28 27 Device 14 | . 14 14 Storage 13 | . 13 14 Energy Cannon 3 | . . 13 Ballistic Gun 20 | . 26 . Ballistic Cannon 1 | . . 5 Launcher 1 | . . 4 Naked Turns . | . . . Heaviest Build 52 | 15 52 52 Greatest Support 40 | 40 40 40 Greatest Overweight (x) 2 | . 1 2 Average Overweight (x) . | . . 1 Largest Inventory Capacity 20 | 8 20 20 Average Capacity 18 | 7 18 20 Most Carried 20 | 5 20 20 Average Carried 15 | 2 15 19 Final Capacity 20 | 5 20 20 Final Carried 20 | 3 20 16 Class Distribution -------------------- 100% | Mutant Dominant Class ---------------- Mutant | -10/Materials Mutant | -10/Subcaves Resources | -11 -10 -10 ----------- Run | Yrd Mat Sub Matter Collected 977 | 318 435 224 Remotely . | . . . Salvage Created 927 | 140 600 187 Parts 70 | 9 49 12 Haulers Intercepted 2 | . 2 . Recyclers Shooed 1 | . 1 . Parts Field Recycled . | . . . Retrieved Matter . | . . . Parts Self-Destructed 12 | . . 12 Prevented . | . . . Kills | -11 -10 -10 ------- Run | Yrd Mat Sub Combat Hostiles Destroyed 17 | . 11 6 Guns 11 | . 11 . Cannons 6 | . . 6 Classes Destroyed 10 | 2 7 1 Worker 2 | . 2 . Builder 1 | . 1 . Tunneler 5 | 3 2 . Hauler 2 | . 2 . Recycler 2 | 1 1 . Mechanic 1 | . 1 . Watcher 2 | . 2 . Swarmer 6 | . 6 . Grunt 5 | . 5 . Subdweller 6 | . . 6 Best Kill Streak 6 | 2 6 1 Combat Bots Only 6 | . 6 1 Max Kills in Single Turn 3 | 1 3 1 Gunslinging 1 | . 1 . Exploded . | . . . Melee . | . . . Uniques/NPCs Destroyed . | . . . Combat | -11 -10 -10 -------- Run | Yrd Mat Sub Hostile Shots Fired 122 | . 45 77 Missed 32 | . 11 21 Damage Taken 1642 | . 444 1198 Core 252 | . 29 223 Absorbed by Shields . | . . . Core Remaining (%) 100 | 100 . . Volleys Fired 113 | 6 68 39 Largest 2 | 2 2 2 Hottest 100 | 70 70 100 Shots Fired 220 | 12 135 73 Gun 148 | 12 135 1 Cannon 68 | . . 68 Launcher . | . . . Special 4 | . . 4 Kinetic 148 | 6 107 35 Thermal 72 | 6 28 38 Explosive . | . . . Electromagnetic . | . . . Robot Hit Streak 15 | 8 13 15 Robot Miss Streak 3 | 1 3 2 Penetration Max . | . . . Secondary Targets 1 | . 1 . Max Gunslinging Chain 1 | . 1 . Shots Hit Robots 152 | 9 87 56 Core Hits 58 | 5 39 14 Critical Kills . | . . . Critical Parts Destroyed . | . . . Critical Strikes 4 | 2 2 . Burn 4 | 2 2 . Melee Attacks . | . . . Impact . | . . . Slashing . | . . . Piercing . | . . . Sneak Attacks . | . . . Combat Hostiles . | . . . Follow-up Attacks . | . . . Damage Inflicted 2227 | 109 1151 967 Guns 1030 | 109 914 7 Cannons 960 | . . 960 Explosions 237 | . 237 . Melee . | . . . Ramming . | . . . Kinetic 1169 | 48 641 480 Thermal 1058 | 61 510 487 Explosive . | . . . Electromagnetic . | . . . Impact . | . . . Slashing . | . . . Piercing . | . . . Highest Corruption . | . . . Average Corruption . | . . . Corruption Purged . | . . . Corruption Blocked . | . . . Overload Shots . | . . . Overflow Damage 139 | . 139 . Projectiles . | . . . Explosions 139 | . 139 . Melee . | . . . Knockbacks 9 | . . 9 Impact . | . . . Kinetic 9 | . . 9 Secondary . | . . . Self-Inflicted Damage 114 | . 114 . Shots 1 | . 1 . Rammed . | . . . Targets Rammed . | . . . Kicked . | . . . Crushed . | . . . Highest Temperature 250 | 18 156 250 Average Temperature 59 | 7 58 140 Received Heat Transfer 626 | . 105 521 Siege Activations . | . . . Robots Corrupted . | . . . Combat Hostiles . | . . . Parts Fried . | . . . Impact Corruptions . | . . . Robots Melted . | . . . Combat Hostiles . | . . . Parts Melted 2 | . 2 . Heat Transferred 2481 | 333 1112 1036 Parts Sabotaged . | . . . Parts Stolen . | . . . Parts Stripped . | . . . Power Chain Reactions . | . . . Alert | -11 -10 -10 ------- Run | Yrd Mat Sub Peak Influence 313 | 20 313 . Initial 13 | . 13 . Average 53 | 10 55 . Maximum Alert Level 1 | . 1 . Low Security (%) 93 | 100 92 . Level 1 6 | . 7 . Level 2 . | . . . Level 3 . | . . . Level 4 . | . . . Level 5 . | . . . High Security . | . . . Max Security . | . . . Squads Dispatched 1 | . 1 . Investigation 1 | . 1 . Extermination . | . . . Reinforcement . | . . . Assault . | . . . Garrison . | . . . Intercept . | . . . Searches Triggered . | . . . Construction Impeded . | . . . Haulers Reinforced . | . . . Active Scanning Responses . | . . . Cargo Convoy Interrupts . | . . . Stealth | -11 -10 -10 --------- Run | Yrd Mat Sub Distress Signals 1 | . 1 . Communications Jammed . | . . . Distress Signals . | . . . Times Spotted 36 | . 23 13 Peak Tracking Total 4 | . 3 4 Tactical Retreats . | . . . Traps | -11 -10 -10 ------- Run | Yrd Mat Sub Traps Triggered 1 | . 1 . Indirectly . | . . . Trap Hack Attempts . | . . . Triggered . | . . . Disarmed . | . . . Reprogrammed . | . . . Reused . | . . . Traps Extracted . | . . . Installed . | . . . Triggered . | . . . Machines | -11 -10 -10 ---------- Run | Yrd Mat Sub Machines Disabled 3 | . 3 . Max in Single Turn 3 | . 3 . Machines Repaired . | . . . Machines Dismantled . | . . . Machines Sabotaged . | . . . Overloaded Fab Kills . | . . . Hacking | -11 -10 -10 --------- Run | Yrd Mat Sub Machines Accessed 7 | . 6 1 Terminals 6 | . 6 . Fabricators . | . . . Repair Stations . | . . . Recycling Units . | . . . Scanalyzers . | . . . Garrison Access . | . . . Total Hacks 21 | . 18 3 Successful 8 | . 5 3 Failed 13 | . 13 . Catastrophic 2 | . 2 . Database Lockouts . | . . . Manual 7 | . 7 . Terminals 18 | . 18 . Fabricators . | . . . Repair Stations . | . . . Recycling Units . | . . . Scanalyzers . | . . . Garrison Access . | . . . Terminal Hacks 8 | . 5 3 Record 3 | . . 3 Robot Analysis 1 | . 1 . Prototype ID Bank 2 | . 2 . Hauler Manifests 1 | . 1 . Zone Layout 1 | . 1 . Fabricator Hacks . | . . . Repair Station Hacks . | . . . Recycling Unit Hacks . | . . . Scanalyzer . | . . . Garrison Access Hacks . | . . . Unauthorized Hacks . | . . . Terminals . | . . . Fabricators . | . . . Repair Stations . | . . . Recycling Units . | . . . Scanalyzers . | . . . Garrison Access . | . . . Data Cores Recovered . | . . . Used . | . . . Hacking Detections 6 | . 6 . Full Trace Events . | . . . Feedback Events . | . . . Feedback Blocked . | . . . Robot Schematics Acquired . | . . . Robots Built . | . . . Authchips . | . . . Time . | . . . Total Robot Build Rating . | . . . Part Schematics Acquired . | . . . Parts Built . | . . . Authchips . | . . . Time . | . . . Total Part Build Rating . | . . . Parts Repaired . | . . . Time . | . . . Parts Recycled . | . . . Recycled Matter . | . . . Retrieved Matter . | . . . Retrieved Components . | . . . Parts Scanalyzed . | . . . Part Schematics Acquired . | . . . Parts Damaged . | . . . Bothacking | -11 -10 -10 ------------ Run | Yrd Mat Sub Used RIF Installer . | . . . Robots Hacked . | . . . Non-combat . | . . . Combat . | . . . Robot Hacks Applied . | . . . Relay Couplers Released . | . . . Fabnet Peak Effective % . | . . . Robots Rewired . | . . . Allies Hacked . | . . . Hacks Repelled . | . . . Allies | -11 -10 -10 -------- Run | Yrd Mat Sub Total Allies . | . . . Largest Group . | . . . Highest-Rated Group . | . . . Highest-Rated Ally . | . . . Total Orders . | . . . Ally Attacks . | . . . Total Damage . | . . . Kills . | . . . Allies Corrupted . | . . . Allies Melted . | . . . Intel | -11 -10 -10 ------- Run | Yrd Mat Sub Robot Analysis Total 1 | . 1 . Derelict Logs Recovered . | . . . Drone Launches . | . . . Drone Recoveries . | . . . Exploration | -11 -10 -10 ------------- Run | Yrd Mat Sub Turns Passed 4330 | 184 3182 964 Spaces Moved 1685 | 99 1252 334 Core 12 | 12 . . Treads 1673 | 87 1252 334 Legs . | . . . Wheels . | . . . Hover . | . . . Flight . | . . . Fastest Speed 50 | 50 160 240 Average Speed 230 | 146 234 240 Slowest Speed 320 | 160 240 320 Overloaded Moves . | . . . Propulsion Burnouts . | . . . Robots Hopped . | . . . Cave-ins Triggered . | . . . Exploration Rate (%) 43 | 4 100 27 Regions Visited 2 Branch Regions 1 Pre-discovered Areas 1 | . . 1 Known Exits Taken . | . . . Unknown Exits Taken 2 | 1 1 . Scrap Searched 1 | . . 1 Spaces Dug . | . . . Terrain Destroyed 22 | . 22 . Melee . | . . . Projectile . | . . . AOE 22 | . 22 . Terrain Rammed . | . . . Walls Destroyed . | . . . Machines Disabled . | . . . Actions | -11 -10 -10 --------- Run | Yrd Mat Sub Total 1917 | 124 1381 412 Wait 38 | . 12 26 Move 1683 | 98 1251 334 Hop . | . . . Pick Up 39 | 10 28 1 Fast Attach . | . . . Attach 15 | 7 2 6 Detach . | . . . Swap 19 | 3 10 6 Drop 10 | . 10 . Fire 113 | 6 68 39 Melee . | . . . Ram . | . . . Kick . | . . . Crush . | . . . Escape Stasis . | . . . Rewire . | . . . Trap . | . . . Miscellaneous . | . . . Route ------- -11/Scrapyard -10/Materials (discovered 6 exits: [*Mat x3] / [*Min x2] / *Sub) -10/Subcaves (discovered 1 exit: [*Mat]) History --------- Turn | Location | Event 6 | -11/Scrapyard | Discovered new exit (range 14) 185 | -11/Scrapyard | Entered Materials 274 | -10/Materials | Discovered new exit (range 8) 300 | -10/Materials | Build established: Mutant 608 | -10/Materials | Discovered new exit (range 13) 704 | -10/Materials | Discovered new exit (range 14) 1650 | -10/Materials | Discovered new exit (range 9) 2098 | -10/Materials | Discovered new exit (range 6) 3344 | -10/Materials | Discovered new exit (range 8) 3367 | -10/Materials | Entered Subcaves 3528 | -10/Subcaves | Discovered new exit (range 9) 3701 | -10/Subcaves | Core integrity fell below 50% 4042 | -10/Subcaves | Visited Clippyterm 4049 | -10/Subcaves | Learned location of Extension (-5) 4306 | -10/Subcaves | Core integrity fell below 20% 4331 | -10/Subcaves | Destroyed by B6-6S8(R) with Subdweller Laser Last Messages --------------- while you're ahead. Please. >>Record "Clippyterm" Welcome to Clippyterm v0.53, my misguided attempt to resurrect an ancient AI. I give up. There must be something fundamentally wrong with the algorithm, because no matter how much data I collect to feed it, half the time it still manages to suggest unhelpful sample queries and responses. --DD-NU8 04301_ 5Y-AZH(R) destroyed. 04304_ Acquired 30 matter. 04304_ Lgt. Cannon destroyed. 04306_ Lgt. Treads destroyed. 04312_ JC-YYQ(R) knocked back. 04314_ JC-YYQ(R) affixes Scrap Shield Fragment to Scrap Shield. 04315_ Ion Engine destroyed. 04322_ JC-YYQ(R) knocked back. 04326_ Lgt. Cannon destroyed. [Achievement: This Is Interesting...] Map ----- +----------------------------------------------------+ | ?????????????????????????????????????????????????? | | ?????????????????????????????????????????????????? | | ?????????????????????????????????????????????????? | | ?????????????????????????????????????????????????? | | ?????????????????????????????????????????????????? | | ?????????????????????????????????????????????????? | | ?????????????????????????????????????????????????? | | ?????????????????????????????????????????????????? | | ?????????????????????????????????????????????????? | | ?????????????????????????????????????????????????? | | ????????????????????????#????????????????????????? | | ?????????????????????"?#%????????????????????????? | | ?????????????????????"# #???????????????????????? | | ????????????????????"" #??????????????????????? | | ???????????????????? " ???????????????????????? | | ?????????????????????" ???????????????????????? | | ????????????????????? ???????????????????????? | | ?????????????????????# # ##??????????????????????? | | ????????????????????## ???????????????????????? | | ????????????????????# ???????????????????????? | | ????????????????????# #???????????????????????? | | ????????????????????## #??????????"""??????????# | | ????????????????????# % #?????????? "???????### | | ????????????????????# &#?????????# "#?????## | | ????????????????????#""RR##########""""#????## | | ????????????????????## #@%# ## #???### | | ????????????????????# % "#???## # | | ????????????????????### R%% ""#??##" ## | | ?????????????????# ### ##??# " ## #? | | ?????????????????# #?# ###???# "#?# #? | | ???????????????# #### ##?#### ### #? | | ???????????????##" #?# ### ## ##? | | ??????????????? ##?## ##?? | | ??????????????# #< #????## ####??? | | ??????????????#?# #??????## ##?????? | | ????????????????## ????????# ## #??????? | | ?????????????????# ????????## ### ##??????? | | ?????????????????# ?????????####### ##??????? | | ?????????????????## ????????????????# #######? | | ??????????????????##???????????????## #? | | ???????????????????????????????????# ##? | | ???????????????????????????????????## #?? | | ???????????????????????????????????## #?? | | ??????????????????????????????????## ##? | | ??????????????????????????????????# #? | | ??????????????????????????????????# #? | | ??????????????????????????????????# ## #? | | ??????????????????????????????????# ####? | | ??????????????????????????????????# # #???? | | ??????????????????????????????????### ## #???? | +----------------------------------------------------+ Best States ------------- Heat Dissipation 35 Energy Generation 10 Energy Capacity 250 Matter Stores 300 Matter Capacity 300 Sight Range 16 Terrain Scan Range 16 Terrain Scan Density 10 Evasion (%) 50 Recoil Reduction 2 Item Schematics ----------------- None Robot Schematics ------------------ None Fabricated ------------ Nothing Alien Tech Used ----------------- None Achievements -------------- This Is Interesting... Challenges ------------ None Game ------ Seed DecoderMagneticInverter Manual? 0 Play Time 00:23:25 Cumulative 30.8 hours Start 2024.04.29 @ 23:04:54 End 2024.04.30 @ 00:22:46 Sessions 3 Manual Loads 0 Difficulty Rogue Special Mode None Game No. 38 Rogue 33 Adventurer 5 Explorer 0 Win Type - Total 0 Types 0/0/0/0/0/0/0/0/0 Lore% 25 Gallery% 27 Achievement% 23 Wizard Run 0 Options --------- Layout 2 ASCII 0 Keyboard 0 Movement Mouse Keybinds 0 Fullscreen 2 Font 24/Smallcaps Map View 50x44 Zoom Use 0% Tactical HUD 1 Map Filters NONE Filters NONE Steam 1 RUN: 0669ca82-5f46-43c7-a721-515ac870e6ef